lending/lending_fUSD_20250913
["ID","MTS","AMOUNT","RATE_DAILY","PERIOD"]
[385348389,1757790684435,-400.0,0.00027671,2]
[385348390,1757790684444,-400.0,0.00027671,2]
[385348391,1757790684455,-400.0,0.00027671,2]
[385348392,1757790684465,-676.37,0.00027671,2]
[385348393,1757790684474,-920.38,0.00027671,2]
[385348394,1757790684483,-381.26728798,0.00027671,2]
[385348395,1757790684492,-785.36,0.00027671,2]
[385348396,1757790684501,-400.0,0.00027671,2]
[385348397,1757790684510,-612.46,0.00027671,2]
[385348398,1757790684519,-200.01544342,0.00027671,2]
[385348399,1757790684528,-857.85,0.00027671,2]
[385348400,1757790684537,-400.0,0.00027671,2]
[385348401,1757790684546,-400.0,0.00027671,2]
[385348402,1757790684556,-1042.18,0.00027671,2]
[385348403,1757790684567,-400.0,0.00027671,2]
[385348404,1757790684579,-400.0,0.00027671,2]
[385348405,1757790684590,-714.23,0.00027671,2]
[385348406,1757790684600,-2338.03,0.00027671,2]
[385348407,1757790684609,-647.42,0.00027671,2]
[385348408,1757790684618,-841.74,0.00027671,2]
[385348409,1757790684628,-894.39,0.00027671,2]
[385348410,1757790684638,-415.63393506,0.00027671,2]
[385348411,1757790684648,-513.3,0.00027671,2]
[385348412,1757790684657,-924.41,0.00027671,2]
[385348413,1757790684667,-1469.88,0.00027671,2]
[385348414,1757790684677,-1485.88,0.00027671,2]
[385348415,1757790684687,-722.3,0.00027671,2]
[385348416,1757790684699,-415.27,0.00027671,2]
[385348417,1757790684710,-400.0,0.00027671,2]
[385348418,1757790684720,-1229.51,0.00027671,2]
[385348419,1757790684729,-814.0,0.00027671,2]
[385348420,1757790684739,-767.19,0.00027671,2]
[385348421,1757790684748,-400.0,0.00027671,2]
[385348422,1757790684758,-400.0,0.00027671,2]
[385348423,1757790684767,-844.21,0.00027671,2]
[385348424,1757790684776,-400.0,0.00027671,2]
[385348425,1757790684785,-404.35001246,0.00027671,2]
[385348426,1757790684794,-400.0,0.00027671,2]
[385348427,1757790684803,-400.0,0.00027671,2]
[385348428,1757790684813,-400.0,0.00027671,2]
[385348429,1757790684823,-400.0,0.00027671,2]
[385348430,1757790684831,-449.16,0.00027671,2]
[385348431,1757790684841,-400.0,0.00027671,2]
[385348432,1757790684852,-865.66,0.00027671,2]
[385348433,1757790684861,-2265.68,0.00027671,2]
[385348434,1757790684871,-400.0,0.00027671,2]
[385348435,1757790684880,-400.0,0.00027671,2]
[385348436,1757790684889,-400.0,0.00027671,2]
[385348437,1757790684898,-572.0,0.00027671,2]
[385348438,1757790684907,-863.57,0.00027671,2]
[385348439,1757790684916,-400.0,0.00027671,2]
[385348440,1757790684926,-2112.49,0.00027671,2]
[385348441,1757790684935,-1107.28,0.00027671,2]
[385348442,1757790684943,-400.0,0.00027671,2]
[385348443,1757790684953,-510.21,0.00027671,2]
[385348444,1757790684962,-1028.51,0.00027671,2]
[385348445,1757790684971,-400.0,0.00027671,2]
[385348446,1757790684980,-400.0,0.00027671,2]
[385348447,1757790684989,-1170.47,0.00027671,2]
[385348448,1757790684998,-841.3,0.00027671,2]
[385348449,1757790685007,-400.0,0.00027671,2]
[385348450,1757790685016,-400.0,0.00027671,2]
[385348451,1757790685025,-856.96,0.00027671,2]
[385348452,1757790685035,-400.0,0.00027671,2]
[385348453,1757790685044,-400.0,0.00027671,2]
[385348454,1757790685053,-701.85,0.00027671,2]
[385348455,1757790685063,-4256.1,0.00027671,2]
[385348456,1757790685263,-906.61,0.00027671,2]
[385348457,1757790685273,-1458.58,0.00027671,2]
[385348458,1757790685283,-400.0,0.00027671,2]
[385348459,1757790685292,-400.0,0.00027671,2]
[385348460,1757790685301,-400.0,0.00027671,2]
[385348461,1757790685310,-1006.96,0.00027671,2]
[385348462,1757790685320,-728.15,0.00027671,2]
[385348463,1757790685329,-400.0,0.00027671,2]
[385348464,1757790685338,-400.0,0.00027671,2]
[385348465,1757790685347,-400.0,0.00027671,2]
[385348466,1757790685356,-400.0,0.00027671,2]
[385348467,1757790685366,-925.96,0.00027671,2]
[385348468,1757790685375,-400.0,0.00027671,2]
[385348469,1757790685385,-400.0,0.00027671,2]
[385348470,1757790685394,-445.69,0.00027671,2]
[385348471,1757790685403,-1198.57,0.00027671,2]
[385348472,1757790685413,-400.0,0.00027671,2]
[385348473,1757790685422,-1974.67,0.00027671,2]
[385348474,1757790685432,-2857.69,0.00027671,2]
[385348475,1757790685441,-421.66351294,0.00027671,2]
[385348476,1757790685451,-400.0,0.00027671,2]
[385348477,1757790685464,-400.0,0.00027671,2]
[385348478,1757790685474,-847.13,0.00027671,2]
[385348479,1757790685483,-2111.33,0.00027671,2]
[385348480,1757790685492,-400.0,0.00027671,2]
[385348481,1757790685502,-400.0,0.00027671,2]
[385348482,1757790685511,-2990.98,0.00027671,2]
[385348483,1757790685521,-400.0,0.00027671,2]
[385348484,1757790685531,-400.0,0.00027671,2]
[385348485,1757790685541,-834.58,0.00027671,2]
[385348486,1757790685551,-2302.98,0.00027671,2]
[385348487,1757790685560,-400.0,0.00027671,2]
[385348488,1757790685569,-308.72138105,0.00027671,2]
[385348489,1757790685579,-2233.25,0.00027671,2]
[385348490,1757790685587,-400.0,0.00027671,2]
[385348491,1757790685597,-1747.56,0.00027671,2]
[385348492,1757790685606,-1255.2,0.00027671,2]
[385348493,1757790685615,-406.95501886,0.00027671,2]
[385348494,1757790685625,-466.82,0.00027671,2]
[385348495,1757790685634,-400.0,0.00027671,2]
[385348496,1757790685643,-400.0,0.00027671,2]
[385348497,1757790685653,-694.91,0.00027671,2]
[385348498,1757790685663,-400.0,0.00027671,2]
[385348499,1757790685673,-400.0,0.00027671,2]
[385348500,1757790685682,-400.0,0.00027671,2]
[385348501,1757790685692,-400.0,0.00027671,2]
[385348502,1757790685701,-400.0,0.00027671,2]
[385348503,1757790685710,-400.0,0.00027671,2]
[385348504,1757790685719,-1143.85,0.00027671,2]
[385348505,1757790685728,-1963.87,0.00027671,2]
[385348506,1757790685737,-400.0,0.00027671,2]
[385348507,1757790685747,-400.0,0.00027671,2]
[385348508,1757790685756,-807.66,0.00027671,2]
[385348509,1757790685765,-509.96987302,0.00027671,2]
[385348510,1757790685774,-2263.39,0.00027671,2]
[385348511,1757790685783,-400.0,0.00027671,2]
[385348512,1757790685793,-400.0,0.00027671,2]
[385348513,1757790685803,-400.0,0.00027671,2]
[385348514,1757790685812,-927.88,0.00027671,2]
[385348515,1757790685821,-400.0,0.00027671,2]
[385348516,1757790685831,-944.31,0.00027671,2]
[385348517,1757790685840,-400.0,0.00027671,2]
[385348518,1757790685849,-407.96841773,0.00027671,2]
[385348519,1757790685859,-952.59,0.00027671,2]
[385348520,1757790685868,-400.0,0.00027671,2]
[385348521,1757790685878,-931.48,0.00027671,2]
[385348522,1757790685887,-263.76554467,0.00027671,2]
[385348523,1757790685896,-669.04,0.00027671,2]
[385348524,1757790685904,-400.0,0.00027671,2]
[385348525,1757790685914,-711.99,0.00027671,2]
[385348526,1757790685923,-1333.33,0.00027671,2]
[385348527,1757790685932,-403.23173374,0.00027671,2]
[385348528,1757790685941,-400.0,0.00027671,2]
[385348529,1757790685952,-400.0,0.00027671,2]
[385348530,1757790685961,-400.0,0.00027671,2]
[385348531,1757790685971,-1798.63,0.00027671,2]
[385348532,1757790685980,-409.09086517,0.00027671,2]
[385348533,1757790685989,-568.52,0.00027671,2]
[385348534,1757790685998,-400.0,0.00027671,2]
[385348535,1757790686007,-400.0,0.00027671,2]
[385348536,1757790686016,-1079.08,0.00027671,2]
[385348537,1757790686025,-1030.24,0.00027671,2]
[385348538,1757790686034,-400.0,0.00027671,2]
[385348539,1757790686044,-400.0,0.00027671,2]
[385348540,1757790686053,-400.0,0.00027671,2]
[385348541,1757790686062,-400.0,0.00027671,2]
[385348542,1757790686070,-400.0,0.00027671,2]
[385348543,1757790686079,-977.53,0.00027671,2]
[385348544,1757790686088,-400.0,0.00027671,2]
[385348545,1757790686097,-400.0,0.00027671,2]
[385348546,1757790686106,-707.41,0.00027671,2]
[385348547,1757790686116,-923.82,0.00027671,2]
[385348548,1757790686125,-400.0,0.00027671,2]
[385348549,1757790686134,-1374.51,0.00027671,2]
[385348550,1757790686143,-539.76,0.00027671,2]
[385348551,1757790686153,-400.0,0.00027671,2]
[385348552,1757790686163,-532.15,0.00027671,2]
[385348553,1757790686171,-1683.27,0.00027671,2]
[385348554,1757790686180,-1021.66,0.00027671,2]
[385348555,1757790686189,-796.82,0.00027671,2]
[385348556,1757790686197,-786.29,0.00027671,2]
[385348557,1757790686206,-400.0,0.00027671,2]
[385348558,1757790686215,-923.85,0.00027671,2]
[385348559,1757790686224,-585.84,0.00027671,2]
[385348560,1757790686233,-342.81398458,0.00027671,2]
[385348561,1757790686242,-1254.84,0.00027671,2]
[385348562,1757790686251,-1026.54,0.00027671,2]
[385348563,1757790686260,-400.0,0.00027671,2]
[385348564,1757790686268,-400.0,0.00027671,2]
[385348565,1757790686278,-403.32139806,0.00027671,2]
[385348566,1757790686286,-492.79,0.00027671,2]
[385348567,1757790686295,-400.0,0.00027671,2]
[385348568,1757790686304,-2328.06,0.00027671,2]
[385348569,1757790686313,-400.0,0.00027671,2]
[385348570,1757790686322,-1854.12,0.00027671,2]
[385348571,1757790686331,-400.0,0.00027671,2]
[385348572,1757790686340,-400.0,0.00027671,2]
[385348573,1757790686348,-3059.22,0.00027671,2]
[385348574,1757790686358,-400.0,0.00027671,2]
[385348575,1757790686367,-1159.49,0.00027671,2]
[385348576,1757790686376,-1000.0,0.00027671,2]
[385348577,1757790686385,-400.0,0.00027671,2]
[385348578,1757790686394,-618.58,0.00027671,2]
[385348579,1757790686404,-400.0,0.00027671,2]
[385348580,1757790686413,-400.0,0.00027671,2]
[385348581,1757790686422,-400.0,0.00027671,2]
[385348582,1757790686431,-400.0,0.00027671,2]
[385348583,1757790686441,-1262.94,0.00027671,2]
[385348584,1757790686450,-400.0,0.00027671,2]
[385348585,1757790686463,-400.0,0.00027671,2]
[385348586,1757790686473,-400.0,0.00027671,2]
[385348587,1757790686481,-320.05708716,0.00027671,2]
[385348588,1757790686491,-400.0,0.00027671,2]
[385348589,1757790686500,-400.0,0.00027671,2]
[385348590,1757790686509,-1602.35,0.00027671,2]
[385348591,1757790686518,-666.27,0.00027671,2]
[385348592,1757790686527,-2778.98,0.00027671,2]
[385348593,1757790686537,-400.0,0.00027671,2]
[385348594,1757790686546,-438.09,0.00027671,2]
[385348595,1757790686556,-344.99,0.00027671,2]
[385348596,1757790686565,-500.0,0.00027671,2]
[385348597,1757790686574,-523.76,0.00027671,2]
[385348598,1757790686584,-400.0,0.00027671,2]
[385348599,1757790686593,-734.11,0.00027671,2]
[385348600,1757790686602,-634.16,0.00027671,2]
[385348601,1757790686611,-400.0,0.00027671,2]
[385348602,1757790686621,-1288.99,0.00027671,2]
[385348603,1757790686631,-887.05,0.00027671,2]
[385348604,1757790686641,-2431.97,0.00027671,2]
[385348605,1757790686650,-400.0,0.00027671,2]
[385348606,1757790686659,-942.86,0.00027671,2]
[385348607,1757790686670,-400.0,0.00027671,2]
[385348608,1757790686679,-400.0,0.00027671,2]
[385348609,1757790686688,-1448.36,0.00027671,2]
[385348610,1757790686697,-1697.7,0.00027671,2]
[385348611,1757790686707,-400.0,0.00027671,2]
[385348612,1757790686716,-693.6,0.00027671,2]
[385348613,1757790686725,-488.5,0.00027671,2]
[385348614,1757790686734,-655.13,0.00027671,2]
[385348615,1757790686743,-419.97577302,0.00027671,2]
[385348616,1757790686752,-400.0,0.00027671,2]
[385348617,1757790686761,-985.78,0.00027671,2]
[385348618,1757790686770,-400.0,0.00027671,2]
[385348619,1757790686780,-914.74,0.00027671,2]
[385348620,1757790686789,-400.0,0.00027671,2]
[385348621,1757790686798,-3119.56,0.00027671,2]
[385348622,1757790686807,-869.51,0.00027671,2]
[385348623,1757790686816,-1199.53,0.00027671,2]
[385348624,1757790686825,-513.97422841,0.00027671,2]
[385348625,1757790686835,-400.0,0.00027671,2]
[385348626,1757790686844,-406.36012857,0.00027671,2]
[385348627,1757790686854,-492.5,0.00027671,2]
[385348628,1757790686863,-400.0,0.00027671,2]
[385348629,1757790686873,-400.0,0.00027671,2]
[385348630,1757790686882,-683.66,0.00027671,2]
[385348631,1757790686891,-400.0,0.00027671,2]
[385348632,1757790686904,-1155.29,0.00027671,2]
[385348633,1757790686913,-1010.79,0.00027671,2]
[385348634,1757790686923,-400.0,0.00027671,2]
[385348635,1757790686932,-655.9,0.00027671,2]
[385348636,1757790686942,-406.36580931,0.00027671,2]
[385348637,1757790686951,-400.0,0.00027671,2]
[385348638,1757790686961,-1130.65,0.00027671,2]
[385348639,1757790686970,-450.64,0.00027671,2]
[385348640,1757790686979,-400.0,0.00027671,2]
[385348641,1757790686988,-536.28,0.00027671,2]
[385348642,1757790686997,-920.05,0.00027671,2]
[385348643,1757790687007,-400.0,0.00027671,2]
[385348644,1757790687016,-1727.97,0.00027671,2]
[385348645,1757790687026,-529.863228,0.00027671,2]
[385348646,1757790687035,-971.87,0.00027671,2]
[385348647,1757790687044,-1049.74,0.00027671,2]
[385348648,1757790687055,-807.81,0.00027671,2]
[385348649,1757790687064,-400.0,0.00027671,2]
[385348650,1757790687074,-1540.01,0.00027671,2]
[385348651,1757790687084,-400.0,0.00027671,2]
[385348652,1757790687095,-767.61,0.00027671,2]
[385348653,1757790687104,-1074.98,0.00027671,2]
[385348654,1757790687115,-400.0,0.00027671,2]
[385348655,1757790687124,-400.0,0.00027671,2]
[385348656,1757790687133,-400.0,0.00027671,2]
[385348657,1757790687143,-400.0,0.00027671,2]
[385348658,1757790687152,-400.0,0.00027671,2]
[385348659,1757790687161,-400.0,0.00027671,2]
[385348660,1757790687170,-721.19,0.00027671,2]
[385348661,1757790687180,-1380.97,0.00027671,2]
[385348662,1757790687189,-843.61,0.00027671,2]
[385348663,1757790687198,-400.0,0.00027671,2]
[385348664,1757790687207,-400.0,0.00027671,2]
[385348665,1757790687217,-798.34,0.00027671,2]
[385348666,1757790687226,-400.0,0.00027671,2]
[385348667,1757790687235,-1507.18,0.00027671,2]
[385348668,1757790687244,-736.94,0.00027671,2]
[385348669,1757790687255,-8779.55,0.00027671,2]
[385348670,1757790687264,-400.0,0.00027671,2]
[385348671,1757790687273,-594.63,0.00027671,2]
[385348672,1757790687283,-400.0,0.00027671,2]
[385348673,1757790687292,-506.79,0.00027671,2]
[385348674,1757790687302,-1003.9,0.00027671,2]
[385348675,1757790687311,-400.0,0.00027671,2]
[385348676,1757790687320,-729.26,0.00027671,2]
[385348677,1757790687329,-400.0,0.00027671,2]
[385348678,1757790687338,-2622.41,0.00027671,2]
[385348679,1757790687348,-511.42049356,0.00027671,2]
[385348680,1757790687357,-666.01,0.00027671,2]
[385348681,1757790687366,-649.71,0.00027671,2]
[385348682,1757790687376,-400.0,0.00027671,2]
[385348683,1757790687385,-400.0,0.00027671,2]
[385348684,1757790687394,-400.0,0.00027671,2]
[385348685,1757790687403,-400.0,0.00027671,2]
[385348686,1757790687412,-813.26,0.00027671,2]
[385348687,1757790687421,-752.66,0.00027671,2]
[385348688,1757790687431,-400.0,0.00027671,2]
[385348689,1757790687440,-500.0,0.00027671,2]
[385348690,1757790687448,-1034.54,0.00027671,2]
[385348691,1757790687462,-401.50136066,0.00027671,2]
[385348692,1757790687471,-851.12,0.00027671,2]
[385348693,1757790687480,-745.71,0.00027671,2]
[385348694,1757790687489,-400.0,0.00027671,2]
[385348695,1757790687498,-2504.84,0.00027671,2]
[385348696,1757790687508,-436.15,0.00027671,2]
[385348697,1757790687517,-931.13,0.00027671,2]
[385348698,1757790687526,-990.05,0.00027671,2]
[385348699,1757790687536,-955.65,0.00027671,2]
[385348700,1757790687545,-400.0,0.00027671,2]
[385348701,1757790687555,-615.48,0.00027671,2]
[385348702,1757790687564,-400.0,0.00027671,2]
[385348703,1757790687573,-400.0,0.00027671,2]
[385348704,1757790687582,-400.0,0.00027671,2]
[385348705,1757790687591,-400.0,0.00027671,2]
[385348706,1757790687600,-400.0,0.00027671,2]
[385348707,1757790687609,-295.7736828,0.00027673,5]
[385348708,1757790687619,-504.62929931,0.00027673,5]
[385348709,1757790687628,-500.63531793,0.00027673,5]
[385348710,1757790687637,-500.0,0.00027673,5]
[385348711,1757790687646,-507.36065406,0.00027673,5]
[385348712,1757790687655,-500.0,0.00027673,5]
[385348713,1757790687664,-500.0,0.00027673,5]
[385348714,1757790687674,-501.70399673,0.00027673,5]
[385348715,1757790687684,-159.76322907,0.00027673,2]
[385348716,1757790687693,-500.0,0.00027673,5]
[385348717,1757790687704,-500.0,0.00027673,5]
[385348718,1757790687713,-500.0,0.00027673,5]
[385348719,1757790687722,-500.0,0.00027673,5]
[385348720,1757790687732,-501.45863275,0.00027673,5]
[385348721,1757790687741,-500.0,0.00027673,5]
[385348722,1757790687750,-500.0,0.00027673,5]
[385348723,1757790687759,-500.0,0.00027673,5]
[385348724,1757790687769,-501.39139988,0.00027673,5]
[385348725,1757790687779,-501.38301091,0.00027673,5]
[385348726,1757790687788,-514.23072779,0.00027673,5]
[385348727,1757790687797,-501.55606238,0.00027673,5]
[385348728,1757790687806,-500.0,0.00027673,5]
[385348729,1757790687816,-500.0,0.00027673,5]
[385348730,1757790687825,-588.25515791,0.00027673,5]
[385348731,1757790687834,-504.79620215,0.00027673,5]
[385348732,1757790687843,-500.0,0.00027673,5]
[385348733,1757790687852,-3574.86,0.00027687,2]
[385348734,1757790687862,-1029.01,0.00027687,2]
[385348735,1757790687871,-2027.45,0.00027687,2]
[385348736,1757790687880,-151.0,0.00027688,2]
[385348737,1757790687890,-50925.12,0.000277,7]
[385348738,1757790687899,-1389.17,0.00027703,2]
[385348739,1757790687908,-836.29,0.00027703,2]
[385348740,1757790687918,-290.0,0.00027712,2]
[385348741,1757790687927,-150.0,0.00027726,2]
[385348742,1757790687937,-150.0,0.00027726,2]
[385348743,1757790687946,-200.0,0.00027726,2]
[385348744,1757790687956,-196.886,0.00027726,2]
[385348745,1757790687965,-150.26,0.00027726,2]
[385348746,1757790687975,-200.313,0.00027726,2]
[385348747,1757790687984,-206.115,0.00027726,2]
[385348748,1757790687993,-150.0,0.00027726,2]
[385348749,1757790688002,-246.158,0.00027726,2]
[385348750,1757790688011,-150.0,0.00027726,2]
[385348751,1757790688020,-150.0,0.00027726,2]
[385348752,1757790688030,-150.114,0.00027726,2]
[385348753,1757790688039,-1260.0,0.00027726,2]
[385348754,1757790688048,-887.0,0.00027726,2]
[385348755,1757790688057,-2038.0,0.00027726,2]
[385348756,1757790688066,-3388.0,0.00027726,2]
[385348757,1757790688076,-601.0,0.00027726,2]
[385348758,1757790688085,-1302.0,0.00027726,2]
[385348759,1757790688094,-1579.0,0.00027726,2]
[385348760,1757790688104,-568.0,0.00027726,2]
[385348761,1757790688113,-812.0,0.00027726,2]
[385348762,1757790688123,-290.0,0.00027749,7]
[385348763,1757790688133,-500.0,0.00027773,2]
[385348764,1757790688142,-150.0,0.00027773,2]
[385348765,1757790688151,-150.0,0.00027773,2]
[385348766,1757790688161,-500.0,0.00027773,2]
[385348767,1757790688171,-150.0,0.00027773,2]
[385348768,1757790688180,-176.64,0.00027773,2]
[385348769,1757790688189,-1631.03118485,0.0002779,2]
[385348770,1757790688199,-2400.0,0.000278,10]
[385348771,1757790688207,-1425.0,0.00027819,2]
[385348772,1757790688216,-266.11516138,0.00027844,2]
[385348773,1757790688225,-10602.910095,0.00027845,2]
[385348774,1757790688234,-400.0,0.000279,10]
[385348775,1757790688243,-202.0,0.0002791,2]
[385348776,1757790688252,-645.89,0.00027919,2]
[385348777,1757790688261,-477.73919116,0.00027921,3]
[385348778,1757790688271,-500.0,0.00027921,5]
[385348779,1757790688280,-1000.0,0.00027921,2]
[385348780,1757790688289,-1000.0,0.00027921,5]
[385348781,1757790688299,-1000.0,0.00027921,5]
[385348782,1757790688308,-262.29,0.00027931,2]
[385348783,1757790688318,-645.89,0.00027944,2]
[385348784,1757790688327,-645.89,0.00027944,2]
[385348785,1757790688336,-645.89,0.00027944,2]
[385348786,1757790688345,-645.89,0.00027944,2]
[385348787,1757790688354,-645.89,0.00027944,2]
[385348788,1757790688363,-645.95941485,0.00027944,2]
[385348789,1757790688372,-546.79,0.00027944,2]
[385348790,1757790688381,-546.79,0.00027944,2]
[385348791,1757790688390,-546.79,0.00027944,2]
[385348792,1757790688399,-546.79,0.00027944,2]
[385348793,1757790688408,-546.79,0.00027944,2]
[385348794,1757790688417,-546.79,0.00027944,2]
[385348795,1757790688426,-546.87503392,0.00027944,2]
[385348796,1757790688435,-516.58,0.00027944,2]
[385348797,1757790688445,-516.58,0.00027944,2]
[385348798,1757790688457,-516.58,0.00027944,2]
[385348799,1757790688467,-516.58,0.00027944,2]
[385348800,1757790688476,-516.58,0.00027944,2]
[385348801,1757790688485,-516.58,0.00027944,2]
[385348802,1757790688494,-516.70945156,0.00027944,2]
[385348803,1757790688504,-3574.86,0.00027944,2]
[385348804,1757790688513,-3574.86,0.00027944,2]
[385348805,1757790688522,-3574.86,0.00027944,2]
[385348806,1757790688531,-3574.86,0.00027944,2]
[385348807,1757790688540,-3574.86,0.00027944,2]
[385348808,1757790688550,-3575.04616872,0.00027944,2]
[385348809,1757790688559,-1029.01,0.00027944,2]
[385348810,1757790688568,-1029.01,0.00027944,2]
[385348811,1757790688578,-1029.01,0.00027944,2]
[385348812,1757790688587,-1029.01,0.00027944,2]
[385348813,1757790688595,-1029.01,0.00027944,2]
[385348814,1757790688605,-1029.1706993,0.00027944,2]
[385348815,1757790688614,-561.51,0.00027944,2]
[385348816,1757790688623,-561.51,0.00027944,2]
[385348817,1757790688633,-561.51,0.00027944,2]
[385348818,1757790688642,-1389.17,0.00027944,2]
[385348819,1757790688651,-1389.17,0.00027944,2]
[385348820,1757790688661,-1389.17,0.00027944,2]
[385348821,1757790688670,-2027.45,0.00027944,2]
[385348822,1757790688680,-2027.45,0.00027944,2]
[385348823,1757790688689,-2027.45,0.00027944,2]
[385348824,1757790688699,-836.29,0.00027944,2]
[385348825,1757790688708,-836.29,0.00027944,2]
[385348826,1757790688717,-836.29,0.00027944,2]
[385348827,1757790688726,-1753.05714564,0.00027945,2]
[385348828,1757790688735,-328.6042918,0.00027945,2]
[385348829,1757790688744,-181.62517462,0.00027945,2]
[385348830,1757790688753,-400.0,0.00027945,2]
[385348831,1757790688762,-400.0,0.00027945,2]
[385348832,1757790688771,-400.0,0.00027945,2]
[385348833,1757790688780,-400.0,0.00027945,2]
[385348834,1757790688789,-403.48,0.00027945,2]
[385348835,1757790688798,-400.0,0.00027945,2]
[385348836,1757790688807,-400.0,0.00027945,2]
[385348837,1757790688816,-699.06,0.00027945,2]
[385348838,1757790688825,-888.74,0.00027945,2]
[385348839,1757790688835,-403.01672004,0.00027945,2]
[385348840,1757790688844,-400.0,0.00027945,2]
[385348841,1757790688853,-1067.33,0.00027945,2]
[385348842,1757790688862,-400.0,0.00027945,2]
[385348843,1757790688871,-400.0,0.00027945,2]
[385348844,1757790688880,-494.9,0.00027945,2]
[385348845,1757790688889,-400.0,0.00027945,2]
[385348846,1757790688898,-400.0,0.00027945,2]
[385348847,1757790688907,-400.0,0.00027945,2]
[385348848,1757790688916,-1011.1,0.00027945,2]
[385348849,1757790688926,-400.0,0.00027945,2]
[385348850,1757790688934,-400.0,0.00027945,2]
[385348851,1757790688943,-400.0,0.00027945,2]
[385348852,1757790688952,-400.0,0.00027945,2]
[385348853,1757790688962,-411.04,0.00027945,2]
[385348854,1757790688971,-400.0,0.00027945,2]
[385348855,1757790688980,-400.0,0.00027945,2]
[385348856,1757790688989,-400.0,0.00027945,2]
[385348857,1757790688998,-400.0,0.00027945,2]
[385348858,1757790689007,-400.0,0.00027945,2]
[385348859,1757790689016,-400.0,0.00027945,2]
[385348860,1757790689025,-400.0,0.00027945,2]
[385348861,1757790689035,-400.0,0.00027945,2]
[385348862,1757790689044,-400.0,0.00027945,2]
[385348863,1757790689053,-400.0,0.00027945,2]
[385348864,1757790689062,-400.0,0.00027945,2]
[385348865,1757790689071,-400.0,0.00027945,2]
[385348866,1757790689080,-400.0,0.00027945,2]
[385348867,1757790689089,-400.0,0.00027945,2]
[385348868,1757790689098,-400.0,0.00027945,2]
[385348869,1757790689323,-403.91120822,0.00027945,2]
[385348870,1757790689333,-400.0,0.00027945,2]
[385348871,1757790689342,-436.55,0.00027945,2]
[385348872,1757790689351,-415.46,0.00027945,2]
[385348873,1757790689361,-400.0,0.00027945,2]
[385348874,1757790689371,-400.0,0.00027945,2]
[385348875,1757790689380,-400.0,0.00027945,2]
[385348876,1757790689389,-400.0,0.00027945,2]
[385348877,1757790689399,-1222.47,0.00027945,2]
[385348878,1757790689409,-400.0,0.00027945,2]
[385348879,1757790689418,-400.0,0.00027945,2]
[385348880,1757790689427,-400.0,0.00027945,2]
[385348881,1757790689436,-622.37,0.00027945,2]
[385348882,1757790689446,-751.49,0.00027945,2]
[385348883,1757790689457,-500.0,0.00027945,2]
[385348884,1757790689468,-400.0,0.00027945,2]
[385348885,1757790689478,-400.0,0.00027945,2]
[385348886,1757790689488,-512.06,0.00027945,2]
[385348887,1757790689498,-400.0,0.00027945,2]
[385348888,1757790689509,-400.0,0.00027945,2]